fUSD/lending_fUSD_20260316
["ID","MTS","AMOUNT","RATE_DAILY","PERIOD"]
[408461129,1773681031899,-1543.57054066,0.00014733,2]
[408461130,1773681031956,-2056.11656058,0.00014733,2]
[408461131,1773681031966,-2943.88343942,0.00014733,2]
[408461132,1773681031978,-646.29656058,0.00014733,2]
[408461133,1773681031987,-6092.95,0.00014753,2]
[408461134,1773681031997,-166.66,0.00014757,2]
[408461135,1773681032006,-500.80502339,0.000148,2]
[408461136,1773681032015,-500.39228547,0.000148,2]
[408461137,1773681032027,-160.07751868,0.000148,2]
[408461138,1773681032039,-160.077691,0.000148,2]
[408461139,1773681032048,-500.0,0.000148,2]
[408461140,1773681032058,-160.07753511,0.000148,2]
[408461141,1773681032068,-160.07772132,0.000148,2]
[408461142,1773681032077,-500.0,0.0001486,2]
[408461143,1773681032086,-160.07743134,0.0001486,2]
[408461144,1773681032095,-160.07770424,0.0001486,2]
[408461145,1773681032106,-500.0,0.0001486,2]
[408461147,1773681032115,-500.0,0.0001486,2]
[408461149,1773681032125,-200.0,0.00014895,2]
[408461150,1773681032136,-500.0,0.00014895,2]
[408461151,1773681032145,-500.0,0.00014895,2]
[408461152,1773681032155,-500.0,0.00014895,2]
[408461153,1773681032164,-500.0,0.00014895,2]
[408461154,1773681032172,-500.0,0.00014895,2]
[408461155,1773681032182,-500.0,0.00014895,2]
[408461156,1773681032192,-500.0,0.00014895,2]
[408461157,1773681032354,-151.0,0.00014895,2]
[408461158,1773681032364,-500.0,0.00014895,2]
[408461159,1773681032374,-151.0,0.00014895,2]
[408461160,1773681032384,-151.0,0.00014895,2]
[408461161,1773681032393,-500.0,0.00014895,2]
[408461162,1773681032404,-151.0,0.00014895,2]
[408461163,1773681032413,-500.0,0.00014895,2]
[408461164,1773681032423,-500.0,0.00014895,2]
[408461165,1773681032432,-151.0,0.00014895,2]
[408461166,1773681032441,-151.0,0.00014895,2]
[408461167,1773681032451,-500.0,0.00014895,2]
[408461168,1773681032460,-151.0,0.00014895,2]
[408461169,1773681032470,-500.0,0.00014895,2]
[408461170,1773681032479,-500.0,0.00014895,2]
[408461171,1773681032488,-500.0,0.00014895,2]
[408461172,1773681032498,-500.0,0.00014895,2]
[408461173,1773681032508,-151.0,0.00014895,2]
[408461174,1773681032517,-16687.07,0.00014904,2]
[408461175,1773681032526,-160.07768781,0.00014967,2]
[408461176,1773681032535,-500.28201641,0.00014967,2]
[408461177,1773681032545,-160.07737179,0.00014967,2]
[408461178,1773681032555,-250.0,0.00015,2]
[408461179,1773681032564,-160.07914784,0.00015033,2]
[408461180,1773681032574,-500.0,0.00015033,2]
[408461181,1773681032583,-166.66,0.00015055,2]
[408461182,1773681032592,-150.0,0.00015143,2]
[408461183,1773681032602,-165.17,0.00015216,2]
[408461184,1773681032611,-198.14141269,0.00015248,2]
[408461185,1773681032620,-502.24595461,0.00015281,2]
[408461186,1773681032630,-608.00046403,0.00015307,2]
[408461187,1773681032639,-500.0,0.00015311,2]
[408461188,1773681032649,-500.0,0.00015311,2]
[408461189,1773681032659,-500.0,0.00015311,2]
[408461190,1773681032668,-500.0,0.00015311,2]
[408461191,1773681032677,-500.0,0.00015311,2]
[408461192,1773681032686,-500.0,0.00015311,2]
[408461193,1773681032695,-500.0,0.00015311,2]
[408461194,1773681032705,-500.0,0.00015311,2]
[408461195,1773681032715,-166.66,0.00015354,2]
[408461196,1773681032724,-1000.0,0.00015408,2]
[408461197,1773681032735,-1000.0,0.00015408,2]
[408461198,1773681032744,-200.0,0.00015443,2]
[408461199,1773681032753,-251.86,0.00015483,2]
[408461200,1773681032763,-500.0,0.00015514,2]
[408461201,1773681032772,-501.04208382,0.00015514,2]
[408461202,1773681032780,-500.0,0.00015514,2]
[408461203,1773681032790,-500.0,0.00015514,2]
[408461204,1773681032799,-500.24541501,0.00015514,2]
[408461205,1773681032808,-167.35397821,0.00015514,2]
[408461206,1773681032817,-500.09769254,0.00015514,2]
[408461207,1773681032826,-166.66,0.00015652,2]
[408461208,1773681032835,-302.01,0.00015711,2]
[408461209,1773681032853,-1000.0,0.00015859,2]
[408461210,1773681032865,-364.87438983,0.00015859,2]
[408461211,1773681032875,-500.0,0.00015859,2]
[408461212,1773681032884,-1000.0,0.00015859,2]
[408461213,1773681032894,-1000.0,0.00015859,2]
[408461214,1773681032907,-333.17705828,0.00015859,2]
[408461215,1773681032918,-2000.0,0.0001589,2]
[408461216,1773681032928,-150.0,0.000159,2]
[408461217,1773681032939,-167.13,0.0001593,2]
[408461218,1773681032950,-189.08326121,0.00015956,2]
[408461219,1773681032960,-1000.0,0.00015956,2]
[408461220,1773681032969,-1000.0,0.00016062,2]
[408461221,1773681032979,-150.0,0.00016157,2]
[408461222,1773681032989,-682.22,0.00016157,2]
[408461223,1773681032999,-500.0,0.00016199,2]
[408461224,1773681033009,-206.34510274,0.00016199,2]
[408461225,1773681033020,-500.0,0.00016199,2]
[408461226,1773681033034,-500.0,0.00016199,2]
[408461227,1773681033044,-483.24969942,0.00016199,2]
[408461228,1773681033054,-500.0,0.00016199,2]
[408461229,1773681033063,-500.0,0.00016199,2]
[408461230,1773681033074,-500.0,0.00016199,2]
[408461231,1773681033085,-477.13829296,0.00016199,2]
[408461232,1773681033095,-245.06502771,0.00016199,2]
[408461233,1773681033105,-500.0,0.00016199,2]
[408461234,1773681033115,-500.0,0.00016199,2]
[408461235,1773681033124,-500.0,0.00016199,2]
[408461236,1773681033134,-266.644729,0.00016199,2]
[408461237,1773681033145,-500.0,0.00016199,2]
[408461238,1773681033154,-500.0,0.00016199,2]
[408461239,1773681033164,-500.0,0.00016199,2]
[408461240,1773681033173,-500.0,0.00016199,2]
[408461241,1773681033183,-500.0,0.00016199,2]
[408461242,1773681033192,-500.0,0.00016199,2]
[408461243,1773681033201,-500.0,0.00016199,2]
[408461244,1773681033211,-500.0,0.00016199,2]
[408461245,1773681033220,-500.0,0.00016199,2]
[408461246,1773681033229,-500.0,0.00016199,2]
[408461247,1773681033239,-500.0,0.00016199,2]
[408461248,1773681033248,-500.0,0.00016199,2]
[408461249,1773681033258,-500.0,0.00016199,2]
[408461250,1773681033270,-500.0,0.00016199,2]
[408461251,1773681033280,-500.0,0.00016199,2]
[408461252,1773681033290,-500.0,0.00016199,2]
[408461253,1773681033299,-500.0,0.00016199,2]
[408461254,1773681033309,-500.0,0.00016199,2]
[408461255,1773681033319,-500.0,0.00016199,2]
[408461256,1773681033329,-500.0,0.00016199,2]
[408461257,1773681033339,-500.0,0.00016199,2]
[408461258,1773681033348,-326.90215636,0.00016199,2]
[408461259,1773681033357,-500.0,0.00016199,2]
[408461260,1773681033367,-500.0,0.00016199,2]
[408461261,1773681033376,-500.0,0.00016199,2]
[408461262,1773681033386,-500.0,0.00016199,2]
[408461263,1773681033396,-500.0,0.00016199,2]
[408461264,1773681033406,-500.0,0.00016199,2]
[408461265,1773681033419,-500.0,0.00016199,2]
[408461266,1773681033428,-500.0,0.00016199,2]
[408461267,1773681033438,-500.0,0.00016199,2]
[408461268,1773681033449,-500.0,0.00016199,2]
[408461269,1773681033458,-93573.499247,0.000162,5]
[408461270,1773681033468,-600.0,0.00016205,2]
[408461271,1773681033478,-250.0,0.00016205,2]
[408461272,1773681033488,-5000.0,0.00016205,2]
[408461273,1773681033498,-300.0,0.00016205,2]
[408461274,1773681033508,-1680.0,0.00016206,2]
[408461275,1773681033519,-5035.56,0.00016305,2]
[408461276,1773681033529,-251.86,0.00016343,2]
[408461277,1773681033538,-2475.97,0.00016345,2]
[408461278,1773681033548,-3240.0,0.00016368,2]
[408461279,1773681033560,-496.54,0.00016392,2]
[408461280,1773681033571,-1140.28556256,0.00016407,2]
[408461281,1773681033581,-500.0,0.00016407,2]
[408461282,1773681033590,-200.0,0.000165,2]
[408461283,1773681033603,-167.13,0.00016587,2]
[408461284,1773681033614,-444.51978947,0.00016606,2]
[408461285,1773681033625,-1151.11556502,0.0001661,2]
[408461286,1773681033634,-167.89,0.00016716,2]
[408461287,1773681033645,-167.89,0.00016716,2]
[408461288,1773681033655,-2500.0,0.00016761,2]
[408461289,1773681033665,-6079.9912,0.000168,2]
[408461290,1773681033675,-297.0,0.00016814,2]
[408461291,1773681033685,-414.9766043,0.00016816,2]
[408461292,1773681033694,-15993.2958551,0.00016816,2]
[408461293,1773681033704,-825.49456721,0.00016816,2]
[408461294,1773681033713,-167.49845187,0.00016861,2]
[408461295,1773681033724,-250.0,0.00016861,2]
[408461296,1773681033734,-500.0,0.00016861,2]
[408461297,1773681033743,-500.0,0.00016861,2]
[408461298,1773681033753,-500.0,0.00016861,2]
[408461299,1773681033763,-500.0,0.00016861,2]
[408461300,1773681033773,-500.0,0.00016861,2]
[408461301,1773681033784,-500.0,0.00016861,2]
[408461302,1773681033797,-750.0,0.00016861,2]
[408461303,1773681033807,-500.0,0.00016861,2]
[408461304,1773681033816,-500.0,0.00016861,2]
[408461305,1773681033827,-600.2919257,0.00016861,2]
[408461306,1773681033838,-500.0,0.00016861,2]
[408461307,1773681033848,-500.0,0.00016861,2]
[408461308,1773681033858,-542.33811601,0.00016861,2]
[408461309,1773681033868,-500.0,0.00016861,2]
[408461310,1773681033877,-500.0,0.00016861,2]
[408461311,1773681033887,-500.0,0.00016861,2]
[408461312,1773681033896,-500.0,0.00016861,2]
[408461313,1773681033906,-151.0,0.00016861,2]
[408461314,1773681033916,-500.0,0.00016861,2]
[408461315,1773681033926,-250.0,0.00016861,2]
[408461316,1773681033936,-500.0,0.00016861,2]
[408461317,1773681033946,-500.0,0.00016861,2]
[408461318,1773681033956,-500.0,0.00016861,2]
[408461319,1773681033965,-500.0,0.00016861,2]
[408461320,1773681033975,-500.0,0.00016861,2]
[408461321,1773681033984,-500.0,0.00016861,2]
[408461322,1773681033994,-500.0,0.00016861,2]
[408461323,1773681034004,-250.0,0.00016861,2]
[408461324,1773681034013,-181.0801015,0.00016861,2]
[408461325,1773681034024,-250.0,0.00016861,2]
[408461326,1773681034035,-285.33216291,0.00016861,2]
[408461327,1773681034044,-200.0,0.00016861,2]
[408461328,1773681034053,-250.0,0.00016861,2]
[408461329,1773681034063,-500.0,0.00016861,2]
[408461330,1773681034074,-399.80320651,0.00016861,2]
[408461331,1773681034083,-444.51,0.00016882,2]
[408461332,1773681034094,-246.266404,0.00016886,7]
[408461333,1773681034105,-235.019642,0.00016886,7]
[408461334,1773681034115,-685.65,0.0001689,2]
[408461335,1773681034124,-685.65,0.0001689,2]
[408461336,1773681034134,-685.65,0.0001689,2]
[408461337,1773681034143,-685.65,0.0001689,2]
[408461338,1773681034152,-685.65,0.0001689,2]
[408461339,1773681034162,-230.52982074,0.00016899,2]
[408461340,1773681034171,-500.0,0.00016899,2]
[408461341,1773681034184,-431.51570611,0.00016899,2]
[408461342,1773681034194,-500.0,0.00016899,2]
[408461343,1773681034204,-181.26138334,0.00016899,2]
[408461344,1773681034213,-500.0,0.00016899,2]
[408461345,1773681034223,-204.91226726,0.00016899,2]
[408461346,1773681034233,-187703.59311823,0.000169,2]
[408461347,1773681034249,-30276.47825036,0.000169,2]
[408461352,1773681037982,-363.36912977,0.000169,2]
[408461353,1773681037999,-6187.95,0.000169,2]
[408461354,1773681038010,-324.27,0.000169,2]
[408461355,1773681038026,-568.4,0.000169,2]
[408461356,1773681038077,-19413.65743442,0.000169,2]
[408461409,1773681040286,-1182.73714186,0.000169,2]
[408461410,1773681040298,-500.0,0.000169,2]
[408461411,1773681040496,-1253479.54492536,0.000169,2]
[408461412,1773681040507,-1076.32,0.000169,2]
[408461413,1773681040517,-151.0,0.00016916,2]
[408461414,1773681040527,-253.59667591,0.00016931,2]
[408461415,1773681040538,-333.375088,0.00016957,7]
[408461416,1773681040548,-682.22,0.00016965,2]
[408461418,1773681040557,-151.0,0.00016971,2]
[408461419,1773681040568,-511.0,0.00017,2]
[408461420,1773681040578,-209.081049,0.00017019,7]
[408461421,1773681040588,-1391.2093,0.00017031,2]
[408461422,1773681040598,-50492.0104,0.00017031,2]
[408461423,1773681040608,-302.01,0.00017081,2]
[408461424,1773681040618,-169.5352815,0.000171,2]
[408461425,1773681040628,-212.57941451,0.000171,2]
[408461426,1773681040639,-201.61275877,0.000171,2]
[408461427,1773681040649,-208.54687733,0.000171,2]
[408461428,1773681040658,-500.0,0.00017131,2]
[408461429,1773681040668,-500.0,0.00017131,2]
[408461430,1773681040677,-500.0,0.00017131,2]
[408461431,1773681040687,-574.55,0.00017131,2]
[408461432,1773681040697,-500.0,0.00017131,2]
[408461433,1773681040707,-500.0,0.00017131,2]
[408461434,1773681040717,-500.0,0.00017131,2]
[408461435,1773681040726,-500.0,0.00017131,2]
[408461436,1773681040736,-500.0,0.00017131,2]
[408461437,1773681040745,-523.37568482,0.00017131,2]
[408461438,1773681040755,-500.0,0.00017131,2]
[408461439,1773681040765,-500.0,0.00017131,2]
[408461440,1773681040775,-500.0,0.00017131,2]
[408461441,1773681040784,-320.44560619,0.00017132,2]
[408461442,1773681040793,-8751.23209008,0.00017132,2]
[408461443,1773681040813,-716.49020845,0.00017132,2]
[408461454,1773681042999,-140392.18764288,0.00017132,2]
[408461455,1773681043011,-188346.49303638,0.00017132,2]
[408461456,1773681043053,-2484.80542572,0.00017132,2]
[408461467,1773681045835,-132397.70869649,0.00017132,2]
[408461468,1773681045845,-700.0,0.00017143,2]
[408461469,1773681045855,-1472.0,0.0001715,2]
[408461470,1773681045864,-15993.29585509,0.00017159,2]
[408461471,1773681045873,-210.38934699,0.00017173,2]
[408461472,1773681045883,-500.0,0.00017173,2]
[408461473,1773681045892,-500.0,0.00017173,2]
[408461474,1773681045901,-160.07751987,0.00017173,2]
[408461475,1773681045910,-500.0,0.00017173,2]
[408461476,1773681045920,-502.8043416,0.00017173,2]
[408461477,1773681045929,-368.93202184,0.00017173,2]
[408461478,1773681045938,-500.0,0.00017173,2]
[408461479,1773681045947,-406.99120182,0.00017173,2]
[408461480,1773681045956,-500.0,0.00017173,2]
[408461481,1773681045966,-336.85380746,0.00017173,2]
[408461482,1773681045976,-501.93995683,0.00017173,2]
[408461483,1773681045985,-500.0,0.00017173,2]
[408461484,1773681045995,-565.36741899,0.00017173,2]
[408461485,1773681046005,-517.35236045,0.00017173,2]
[408461486,1773681046014,-500.0,0.00017173,2]
[408461487,1773681046025,-500.0,0.00017173,2]
[408461488,1773681046038,-163.91983611,0.00017173,2]
[408461489,1773681046047,-500.0,0.00017173,2]
[408461490,1773681046056,-500.20406582,0.00017173,2]
[408461491,1773681046066,-166.36967006,0.00017173,2]
[408461492,1773681046076,-500.0,0.00017173,2]
[408461493,1773681046086,-526.19704835,0.00017173,2]
[408461494,1773681046096,-500.0,0.00017173,2]
[408461495,1773681046111,-500.0,0.00017173,2]
[408461496,1773681046121,-556.31365803,0.00017173,2]
[408461497,1773681046131,-500.22378811,0.00017173,2]
[408461498,1773681046140,-500.0,0.00017173,2]
[408461499,1773681046151,-500.0,0.00017173,2]
[408461500,1773681046160,-500.0,0.00017173,2]
[408461501,1773681046169,-500.0,0.00017173,2]
[408461502,1773681046178,-500.0,0.00017173,2]
[408461503,1773681046188,-500.0,0.00017173,2]
[408461504,1773681046198,-500.0,0.00017173,2]
[408461506,1773681046338,-210.40472314,0.00017173,2]
[408461507,1773681046348,-1600.0,0.00017182,7]
[408461508,1773681046361,-1600.0,0.00017182,7]
[408461509,1773681046370,-251.86,0.00017203,2]
[408461510,1773681046380,-151.0,0.00017229,2]
[408461511,1773681046389,-308.46140861,0.0001723,2]
[408461512,1773681046398,-780.7905,0.00017231,2]
[408461513,1773681046408,-500.0,0.00017231,2]
[408461514,1773681046417,-500.0,0.00017231,2]
[408461515,1773681046426,-500.0,0.00017231,2]
[408461516,1773681046435,-500.0,0.00017231,2]
[408461517,1773681046444,-500.0,0.00017231,2]
[408461518,1773681046453,-500.0,0.00017231,2]
[408461519,1773681046463,-500.0,0.00017231,2]
[408461520,1773681046473,-500.0,0.00017231,2]
[408461521,1773681046482,-500.0,0.00017231,2]
[408461522,1773681046492,-500.0,0.00017231,2]
[408461523,1773681046501,-500.0,0.00017231,2]
[408461524,1773681046512,-500.0,0.00017231,2]
[408461525,1773681046521,-282823.70372234,0.00017231,2]
[408461526,1773681046733,-3619.66156482,0.00017231,2]
[408461527,1773681046745,-3938.53908983,0.00017231,2]
[408461528,1773681046756,-789.53556558,0.00017231,2]
[408461533,1773681819299,-500.0,0.00013271,2]
[408461534,1773681819323,-260.0,0.00013371,2]
[408461535,1773681819345,-1779.41,0.00013371,2]
[408461536,1773681819366,-600.0,0.00014153,2]
[408461537,1773681819386,-248.26320189,0.00014153,2]
[408461538,1773681819405,-180.70779916,0.00014608,2]
[408461539,1773681819425,-300.0,0.00014708,2]
[408461540,1773681819445,-600.0,0.00014708,2]
[408461541,1773681819465,-250.0,0.00014708,2]
[408461542,1773681819488,-250.0,0.00014708,2]
[408461543,1773681819509,-306.27663351,0.00014708,2]
[408461544,1773681819528,-250.0,0.00014721,2]
[408461545,1773681819546,-1072.777977,0.00015512,2]
[408461546,1773681819566,-176.7,0.0001559,2]
[408461547,1773681819762,-500.0,0.00016119,2]
[408461548,1773681819783,-300.0,0.0001615,2]
[408461549,1773681819804,-300.0,0.00016151,2]
[408461550,1773681819825,-1200.0,0.00016151,2]
[408461551,1773681819845,-6866.69,0.00016152,2]
[408461552,1773681819864,-1986.6,0.00016176,2]
[408461553,1773681819883,-615.77,0.00016577,2]
[408461554,1773681819902,-526.51350935,0.00016815,2]
[408461555,1773681819923,-500.0,0.00016815,2]
[408461556,1773681819942,-301.01377224,0.000169,2]
[408461557,1773681819961,-422.80387737,0.00016956,2]
[408461558,1773681819980,-2000.0,0.00017,2]
[408461559,1773681820000,-514.0,0.00017,2]
[408461560,1773681820019,-1000.0,0.0001703,2]
[408461561,1773681820046,-2500.0,0.00017031,2]
[408461562,1773681820073,-349.95530648,0.00017031,2]
[408461563,1773681820095,-5477.53486765,0.00017031,2]
[408461564,1773681820120,-14678.06015922,0.00017031,2]
[408461565,1773681820143,-297.57788877,0.00017031,2]
[408461566,1773681820163,-3201.81951558,0.00017031,2]
[408461567,1773681820184,-528.11819486,0.00017031,2]
[408461568,1773681820204,-3948.2632505,0.00017031,2]
[408461569,1773681820225,-398.0,0.00017072,2]
[408461570,1773681820248,-9999.99,0.00017073,2]
[408461571,1773681820273,-5095.514,0.00017073,2]
[408461572,1773681820295,-209.372,0.00017073,2]
[408461573,1773681820315,-283.0,0.00017097,2]
[408461574,1773681820336,-150.0,0.00017108,2]
[408461575,1773681820357,-200.0,0.00017121,2]
[408461576,1773681820380,-500.0,0.00017121,2]
[408461577,1773681820400,-500.0,0.00017121,2]
[408461578,1773681820421,-500.0,0.00017121,2]
[408461579,1773681820448,-500.0,0.00017121,2]
[408461580,1773681820470,-500.0,0.00017121,2]
[408461581,1773681820491,-151.0,0.00017121,2]
[408461582,1773681820513,-500.0,0.00017121,2]
[408461583,1773681820533,-500.0,0.00017121,2]
[408461584,1773681820554,-500.0,0.00017121,2]
[408461585,1773681820574,-500.0,0.00017121,2]
[408461586,1773681820596,-500.0,0.00017121,2]
[408461587,1773681820617,-500.0,0.00017121,2]
[408461588,1773681820637,-500.0,0.00017121,2]
[408461589,1773681820658,-500.0,0.00017121,2]
[408461590,1773681820683,-500.0,0.00017121,2]
[408461591,1773681820705,-201.90951027,0.00017121,2]
[408461592,1773681820729,-500.0,0.00017129,2]
[408461593,1773681820753,-500.0,0.00017129,2]
[408461594,1773681820774,-500.0,0.00017129,2]
[408461595,1773681820793,-500.0,0.00017129,2]
[408461596,1773681820815,-500.0,0.00017129,2]
[408461597,1773681820844,-500.0,0.00017129,2]
[408461598,1773681820865,-251.85940591,0.00017129,2]
[408461599,1773681820885,-500.0,0.00017129,2]
[408461600,1773681820910,-500.0,0.00017129,2]
[408461601,1773681820931,-500.0,0.00017129,2]
[408461602,1773681820952,-254.74704042,0.00017129,2]
[408461603,1773681820973,-532.51189692,0.00017129,2]
[408461604,1773681820992,-500.0,0.00017129,2]
[408461605,1773681821014,-500.0,0.00017129,2]
[408461606,1773681821039,-500.0,0.00017129,2]
[408461607,1773681821061,-500.0,0.00017129,2]
[408461608,1773681821083,-500.0,0.00017129,2]
[408461609,1773681821112,-500.0,0.00017129,2]
[408461610,1773681821135,-171.22343292,0.00017129,2]
[408461611,1773681821156,-500.0,0.00017129,2]
[408461612,1773681821179,-500.0,0.00017129,2]
[408461613,1773681821204,-500.0,0.00017129,2]
[408461614,1773681821227,-500.0,0.00017129,2]
[408461615,1773681821251,-354.40515122,0.00017129,2]
[408461616,1773681821281,-500.0,0.00017129,2]
[408461617,1773681821306,-500.0,0.00017129,2]
[408461618,1773681821331,-639.05126436,0.00017129,2]
[408461619,1773681821357,-500.0,0.00017129,2]
[408461620,1773681821377,-500.0,0.00017129,2]
[408461621,1773681821401,-500.0,0.00017129,2]
[408461622,1773681821421,-500.0,0.00017129,2]
[408461623,1773681821442,-500.0,0.00017129,2]
[408461624,1773681821466,-500.0,0.00017129,2]
[408461625,1773681821491,-500.0,0.00017129,2]
[408461626,1773681821515,-500.0,0.00017129,2]
[408461627,1773681821536,-500.0,0.00017129,2]
[408461628,1773681821559,-500.0,0.00017129,2]
[408461629,1773681821587,-500.0,0.00017129,2]
[408461630,1773681821612,-500.0,0.00017129,2]
[408461631,1773681821634,-500.0,0.00017129,2]
[408461632,1773681821657,-500.0,0.00017129,2]
[408461633,1773681821678,-500.0,0.00017129,2]
[408461634,1773681821702,-500.0,0.00017129,2]
[408461635,1773681821727,-500.0,0.00017129,2]
[408461636,1773681821748,-500.0,0.00017129,2]
[408461637,1773681821775,-500.0,0.00017129,2]
[408461638,1773681821801,-500.0,0.00017129,2]
[408461639,1773681821824,-500.0,0.00017129,2]
[408461640,1773681821850,-500.0,0.00017129,2]
[408461641,1773681821872,-500.0,0.00017129,2]
[408461642,1773681821896,-500.0,0.00017129,2]
[408461643,1773681821920,-500.0,0.00017129,2]
[408461644,1773681821945,-500.0,0.00017129,2]
[408461645,1773681821964,-500.0,0.00017129,2]
[408461646,1773681821988,-500.0,0.00017129,2]
[408461647,1773681822009,-500.0,0.00017129,2]
[408461648,1773681822042,-500.0,0.00017129,2]
[408461649,1773681822069,-500.0,0.00017129,2]
[408461650,1773681822091,-500.0,0.00017129,2]
[408461651,1773681822116,-500.0,0.00017129,2]
[408461652,1773681822139,-500.0,0.00017129,2]
[408461653,1773681822164,-500.0,0.00017129,2]
[408461654,1773681822188,-500.0,0.00017129,2]
[408461655,1773681822212,-500.0,0.00017129,2]
[408461656,1773681822234,-500.0,0.00017129,2]
[408461657,1773681822261,-500.0,0.00017129,2]
[408461658,1773681822284,-500.0,0.00017129,2]
[408461659,1773681822306,-500.0,0.00017129,2]
[408461660,1773681822329,-500.0,0.00017129,2]
[408461661,1773681822353,-500.0,0.00017129,2]
[408461662,1773681822375,-500.0,0.00017129,2]
[408461663,1773681822398,-500.0,0.00017129,2]
[408461664,1773681822421,-500.0,0.00017129,2]
[408461665,1773681822444,-500.0,0.00017129,2]
[408461666,1773681822467,-500.0,0.00017129,2]
[408461667,1773681822493,-300.91755719,0.00017129,2]
[408461668,1773681822711,-500.0,0.00017129,2]
[408461669,1773681822734,-500.0,0.00017129,2]
[408461670,1773681822756,-500.0,0.00017129,2]
[408461671,1773681822778,-500.0,0.00017129,2]
[408461672,1773681822799,-500.0,0.00017129,2]
[408461673,1773681822822,-500.0,0.00017129,2]
[408461674,1773681822843,-500.0,0.00017129,2]
[408461675,1773681822868,-500.0,0.00017129,2]
[408461676,1773681822889,-500.0,0.00017129,2]
[408461677,1773681822912,-500.0,0.00017129,2]
[408461678,1773681822939,-500.0,0.00017129,2]
[408461679,1773681822961,-500.0,0.00017129,2]
[408461680,1773681822983,-500.0,0.00017129,2]
[408461681,1773681823004,-500.0,0.00017129,2]
[408461682,1773681823025,-500.0,0.00017129,2]
[408461683,1773681823047,-500.0,0.00017129,2]
[408461684,1773681823071,-500.0,0.00017129,2]
[408461685,1773681823092,-500.0,0.00017129,2]
[408461686,1773681823117,-500.0,0.00017129,2]
[408461687,1773681823140,-500.0,0.00017129,2]
[408461688,1773681823162,-500.0,0.00017129,2]
[408461689,1773681823184,-500.0,0.00017129,2]
[408461690,1773681823207,-1345.09504475,0.00017129,2]
[408461691,1773681823229,-1345.09504475,0.00017129,2]
[408461692,1773681823252,-1345.09504475,0.00017129,2]
[408461693,1773681823277,-1345.09504475,0.00017129,2]
[408461694,1773681823300,-1345.09504475,0.00017129,2]
[408461695,1773681823324,-1345.09504475,0.00017129,2]
[408461696,1773681823347,-1345.09504475,0.00017129,2]
[408461697,1773681823371,-1345.09504475,0.00017129,2]
[408461698,1773681823396,-1345.09504475,0.00017129,2]
[408461699,1773681823419,-1345.09504475,0.00017129,2]
[408461700,1773681823443,-1345.09504475,0.00017129,2]
[408461701,1773681823466,-1345.09504475,0.00017129,2]
[408461702,1773681823489,-1345.09504475,0.00017129,2]
[408461703,1773681823512,-1345.09504475,0.00017129,2]
[408461704,1773681823534,-1345.09504475,0.00017129,2]
[408461705,1773681823558,-1345.09504475,0.00017129,2]
[408461706,1773681823580,-1345.09504475,0.00017129,2]
[408461707,1773681823603,-1345.09504475,0.00017129,2]
[408461708,1773681823626,-1345.09504475,0.00017129,2]
[408461709,1773681823646,-500.0,0.00017129,2]
[408461710,1773681823668,-1345.09504475,0.00017129,2]
[408461711,1773681823691,-500.0,0.00017129,2]
[408461712,1773681823715,-500.0,0.00017129,2]